[Event "*** Titled Tuesday Blitz"]
[Site "Chess.com"]
[Date "2019.08.06"]
[Round "1"]
[White "beatles_22"]
[Black "colegiodemadrid"]
[Result "1-0"]
[WhiteElo "2666"]
[BlackElo "2325"]
[TimeControl "180+2"]
[EndTime "13:01:22 PDT"]
[Termination "beatles_22 won by resignation"]

1. e4 {[%clk 0:03:01.9]} 1... e5 {[%clk 0:02:58.7]} 2. Nf3 {[%clk 0:03:00.6]}
2... Nc6 {[%clk 0:02:59.3]} 3. Nc3 {[%clk 0:03:02.2]} 3... Nf6 {[%clk
0:02:59.4]} 4. g3 {[%clk 0:03:02.6]} 4... d5 {[%clk 0:02:58]} 5. exd5 {[%clk
0:03:04.5]} 5... Nxd5 {[%clk 0:02:59]} 6. Bg2 {[%clk 0:03:06.4]} 6... Nxc3
{[%clk 0:02:58.4]} 7. bxc3 {[%clk 0:03:08.3]} 7... Bc5 {[%clk 0:02:57.9]} 8. O-O
{[%clk 0:03:09.1]} 8... O-O {[%clk 0:02:59.1]} 9. Re1 {[%clk 0:03:10.5]} 9...
Qf6 {[%clk 0:02:57.3]} 10. d3 {[%clk 0:03:05]} 10... Rd8 {[%clk 0:02:51.2]} 11.
Rb1 {[%clk 0:03:04.5]} 11... Bb6 {[%clk 0:02:48.4]} 12. Bg5 {[%clk 0:03:05]} 1-0

[Event "*** Titled Tuesday Blitz"]
[Site "Chess.com"]
[Date "2019.08.06"]
[Round "1"]
[White "Atakishiyev04"]
[Black "HanSchut"]
[Result "1-0"]
[WhiteElo "2602"]
[BlackElo "2205"]
[TimeControl "180+2"]
[EndTime "13:02:00 PDT"]
[Termination "Atakishiyev04 won by resignation"]

1. e4 {[%clk 0:03:01.9]} 1... c5 {[%clk 0:02:59.4]} 2. Nf3 {[%clk 0:03:02.9]}
2... d6 {[%clk 0:03:00.4]} 3. d4 {[%clk 0:03:04.1]} 3... cxd4 {[%clk 0:03:02.3]}
4. Nxd4 {[%clk 0:03:06]} 4... Nf6 {[%clk 0:03:03.8]} 5. Nc3 {[%clk 0:03:07.3]}
5... a6 {[%clk 0:03:05.3]} 6. Bg5 {[%clk 0:03:08.5]} 6... e6 {[%clk 0:03:06.5]}
7. f4 {[%clk 0:03:09]} 7... Be7 {[%clk 0:03:08]} 8. Qf3 {[%clk 0:03:00.8]} 8...
h6 {[%clk 0:03:09.1]} 9. Bh4 {[%clk 0:03:00.9]} 9... g5 {[%clk 0:03:09.5]} 10.
fxg5 {[%clk 0:02:51.9]} 10... Nfd7 {[%clk 0:03:10.8]} 11. Nxe6 {[%clk
0:02:41.1]} 11... fxe6 {[%clk 0:03:11.2]} 12. Qh5+ {[%clk 0:02:42.4]} 12... Kf8
{[%clk 0:03:12.7]} 13. Be2 {[%clk 0:02:32.8]} 13... Ne5 {[%clk 0:03:02.1]} 14.
Bg3 {[%clk 0:02:24.6]} 14... hxg5 {[%clk 0:02:49.4]} 15. Qxh8+ {[%clk 0:02:23]}
1-0

[Event "*** Titled Tuesday Blitz"]
[Site "Chess.com"]
[Date "2019.08.06"]
[Round "1"]
[White "Vadim_Biliy"]
[Black "raviteja81293"]
[Result "1-0"]
[WhiteElo "2221"]
[BlackElo "2582"]
[TimeControl "180+2"]
[EndTime "13:03:49 PDT"]
[Termination "Vadim_Biliy won by resignation"]

1. d4 {[%clk 0:03:01.5]} 1... d5 {[%clk 0:03:01.1]} 2. Nf3 {[%clk 0:03:00.9]}
2... c5 {[%clk 0:03:01.9]} 3. e3 {[%clk 0:03:01.7]} 3... cxd4 {[%clk 0:03:02.6]}
4. exd4 {[%clk 0:03:00.9]} 4... Nc6 {[%clk 0:03:04.5]} 5. c3 {[%clk 0:03:01.3]}
5... Bg4 {[%clk 0:03:00]} 6. h3 {[%clk 0:03:00.3]} 6... Bxf3 {[%clk 0:02:56.9]}
7. Qxf3 {[%clk 0:03:00.1]} 7... Rc8 {[%clk 0:02:57.9]} 8. Nd2 {[%clk 0:02:54.2]}
8... g6 {[%clk 0:02:56.9]} 9. Bd3 {[%clk 0:02:52.7]} 9... e6 {[%clk 0:02:57.9]}
10. O-O {[%clk 0:02:51.7]} 10... Bh6 {[%clk 0:02:59]} 11. Re1 {[%clk 0:02:43.9]}
11... Nf6 {[%clk 0:02:59.3]} 12. Nf1 {[%clk 0:02:42.5]} 12... Bxc1 {[%clk
0:02:59.4]} 13. Raxc1 {[%clk 0:02:42.4]} 13... O-O {[%clk 0:03:00.6]} 14. Ne3
{[%clk 0:02:40.8]} 14... Kg7 {[%clk 0:03:01.4]} 15. Ng4 {[%clk 0:02:41]} 15...
Nxg4 {[%clk 0:03:01.9]} 16. hxg4 {[%clk 0:02:41.6]} 16... Qf6 {[%clk 0:03:02.9]}
17. Qg3 {[%clk 0:02:34.4]} 17... h6 {[%clk 0:02:49.9]} 18. f4 {[%clk 0:02:31.9]}
18... g5 {[%clk 0:02:47.5]} 19. f5 {[%clk 0:02:30.6]} 19... Rfe8 {[%clk
0:02:48.1]} 20. fxe6 {[%clk 0:02:24]} 20... Rxe6 {[%clk 0:02:46.5]} 21. Rxe6
{[%clk 0:02:20.8]} 21... Qxe6 {[%clk 0:02:43.5]} 22. Bf5 {[%clk 0:02:19.2]}
22... Nxd4 {[%clk 0:02:20.3]} 23. Bxe6 {[%clk 0:01:54.3]} 23... Ne2+ {[%clk
0:02:21]} 24. Kh2 {[%clk 0:01:52.4]} 24... Nxg3 {[%clk 0:02:21]} 25. Bxc8 {[%clk
0:01:53.1]} 25... Ne2 {[%clk 0:02:22.6]} 26. Re1 {[%clk 0:01:52.4]} 1-0

[Event "*** Titled Tuesday Blitz"]
[Site "Chess.com"]
[Date "2019.08.06"]
[Round "1"]
[White "maciek_92"]
[Black "Thee-Chessboy"]
[Result "1-0"]
[WhiteElo "2786"]
[BlackElo "2398"]
[TimeControl "180+2"]
[EndTime "13:04:12 PDT"]
[Termination "maciek_92 won by resignation"]

1. c4 {[%clk 0:03:01.1]} 1... g6 {[%clk 0:03:00.3]} 2. Nc3 {[%clk 0:03:01.3]}
2... Bg7 {[%clk 0:02:53.9]} 3. g3 {[%clk 0:03:02.4]} 3... c5 {[%clk 0:02:53.1]}
4. Bg2 {[%clk 0:03:03.6]} 4... Nc6 {[%clk 0:02:54.5]} 5. b3 {[%clk 0:03:04.9]}
5... e6 {[%clk 0:02:52.3]} 6. Ba3 {[%clk 0:03:05.9]} 6... Nge7 {[%clk
0:02:53.8]} 7. Bxc5 {[%clk 0:02:37.6]} 7... d6 {[%clk 0:02:31.4]} 8. Ba3 {[%clk
0:02:37.2]} 8... O-O {[%clk 0:02:32.2]} 9. Nf3 {[%clk 0:02:33.9]} 9... a6 {[%clk
0:02:31.5]} 10. O-O {[%clk 0:02:34.2]} 10... Rb8 {[%clk 0:02:32.8]} 11. d4
{[%clk 0:02:22.2]} 11... b5 {[%clk 0:02:31.9]} 12. cxb5 {[%clk 0:02:23]} 12...
axb5 {[%clk 0:02:32.4]} 13. Bb2 {[%clk 0:02:23.3]} 13... b4 {[%clk 0:02:31.9]}
14. Ne4 {[%clk 0:02:18.1]} 14... h6 {[%clk 0:02:27.4]} 15. a4 {[%clk 0:02:07.5]}
15... bxa3 {[%clk 0:02:21.8]} 16. Bxa3 {[%clk 0:02:08.7]} 16... Nb4 {[%clk
0:02:14.3]} 17. Qd2 {[%clk 0:02:02.6]} 17... Ned5 {[%clk 0:02:09]} 18. Nc3
{[%clk 0:01:57.9]} 18... Nxc3 {[%clk 0:02:04.2]} 19. Qxc3 {[%clk 0:01:59.8]}
19... Nd5 {[%clk 0:02:05.5]} 20. Qb2 {[%clk 0:01:51.1]} 20... Ba6 {[%clk
0:02:01.6]} 21. Rfd1 {[%clk 0:01:50.6]} 21... Qb6 {[%clk 0:01:55.1]} 22. e4
{[%clk 0:01:51.3]} 22... Nb4 {[%clk 0:01:55.2]} 23. Bxb4 {[%clk 0:01:48]} 1-0

[Event "*** Titled Tuesday Blitz"]
[Site "Chess.com"]
[Date "2019.08.06"]
[Round "1"]
[White "slowdgehammer"]
[Black "vugarrasulov"]
[Result "0-1"]
[WhiteElo "2412"]
[BlackElo "2822"]
[TimeControl "180+2"]
[EndTime "13:04:17 PDT"]
[Termination "vugarrasulov won by resignation"]

1. e4 {[%clk 0:02:58.8]} 1... c5 {[%clk 0:03:00.8]} 2. Nc3 {[%clk 0:03:00.7]}
2... d6 {[%clk 0:03:01.5]} 3. Nf3 {[%clk 0:03:01.6]} 3... a6 {[%clk 0:03:01.7]}
4. a4 {[%clk 0:02:59.2]} 4... Nc6 {[%clk 0:03:02.1]} 5. Bc4 {[%clk 0:02:59]}
5... g6 {[%clk 0:03:02.4]} 6. h3 {[%clk 0:02:58.8]} 6... Bg7 {[%clk 0:03:03.3]}
7. d3 {[%clk 0:02:59.8]} 7... e6 {[%clk 0:03:03.8]} 8. O-O {[%clk 0:03:00.7]}
8... Nge7 {[%clk 0:03:03.9]} 9. Be3 {[%clk 0:03:00.8]} 9... d5 {[%clk
0:03:04.6]} 10. exd5 {[%clk 0:02:58.6]} 10... exd5 {[%clk 0:03:06.5]} 11. Bxc5
{[%clk 0:02:59.2]} 11... dxc4 {[%clk 0:03:06.9]} 12. Re1 {[%clk 0:02:54.7]}
12... O-O {[%clk 0:03:06.5]} 13. dxc4 {[%clk 0:02:48]} 13... Be6 {[%clk
0:03:07.3]} 14. Qe2 {[%clk 0:02:45.1]} 14... Qa5 {[%clk 0:03:03.2]} 15. Ba3
{[%clk 0:02:26.9]} 15... Rfe8 {[%clk 0:03:00.3]} 16. Rad1 {[%clk 0:02:22.2]}
16... Nf5 {[%clk 0:03:00.7]} 17. Qd2 {[%clk 0:02:18.4]} 17... Rad8 {[%clk
0:02:57.7]} 18. Qg5 {[%clk 0:02:15.9]} 18... h6 {[%clk 0:02:56.6]} 19. Qf4
{[%clk 0:02:15.9]} 19... g5 {[%clk 0:02:56.9]} 20. Qc1 {[%clk 0:02:14.8]} 20...
Bxc4 {[%clk 0:02:52.6]} 21. Rxd8 {[%clk 0:02:10.5]} 21... Rxd8 {[%clk
0:02:46.8]} 22. Ne4 {[%clk 0:02:06.2]} 22... Bd5 {[%clk 0:02:44.2]} 23. c3
{[%clk 0:01:33.1]} 23... Bxe4 {[%clk 0:02:40.9]} 24. Rxe4 {[%clk 0:01:32]} 24...
Qd5 {[%clk 0:02:42]} 25. Re1 {[%clk 0:01:26.5]} 25... Ne5 {[%clk 0:02:42.4]} 26.
Nxe5 {[%clk 0:01:19.2]} 26... Bxe5 {[%clk 0:02:44.3]} 27. h4 {[%clk 0:01:20]}
27... Nxh4 {[%clk 0:02:44.5]} 0-1

[Event "*** Titled Tuesday Blitz"]
[Site "Chess.com"]
[Date "2019.08.06"]
[Round "1"]
[White "S-Fazulyanov"]
[Black "Alexander_Moskalenko"]
[Result "1/2-1/2"]
[WhiteElo "2450"]
[BlackElo "2856"]
[TimeControl "180+2"]
[EndTime "13:04:24 PDT"]
[Termination "Game drawn by repetition"]

1. e4 {[%clk 0:03:01.9]} 1... c6 {[%clk 0:03:00.5]} 2. d4 {[%clk 0:03:02.9]}
2... d5 {[%clk 0:03:02.4]} 3. Nc3 {[%clk 0:03:04.4]} 3... dxe4 {[%clk
0:03:02.1]} 4. Nxe4 {[%clk 0:03:06]} 4... Nf6 {[%clk 0:03:04]} 5. Nxf6+ {[%clk
0:03:06.4]} 5... exf6 {[%clk 0:03:05.9]} 6. c3 {[%clk 0:03:08.1]} 6... Bd6
{[%clk 0:03:01.8]} 7. Bd3 {[%clk 0:03:09.5]} 7... O-O {[%clk 0:03:03.7]} 8. Qc2
{[%clk 0:03:11]} 8... Re8+ {[%clk 0:03:01.9]} 9. Ne2 {[%clk 0:03:12.4]} 9... f5
{[%clk 0:03:03.8]} 10. Bxf5 {[%clk 0:03:10.1]} 10... Bxf5 {[%clk 0:03:04.4]} 11.
Qxf5 {[%clk 0:03:11.3]} 11... Nd7 {[%clk 0:03:05.9]} 12. Be3 {[%clk 0:03:07.4]}
12... Nb6 {[%clk 0:02:58.6]} 13. O-O-O {[%clk 0:02:59]} 13... Nc4 {[%clk
0:02:52.9]} 14. Rd3 {[%clk 0:02:57.2]} 14... g6 {[%clk 0:02:08.3]} 15. Qf3
{[%clk 0:02:54.1]} 15... Qa5 {[%clk 0:02:08.8]} 16. Kb1 {[%clk 0:02:52.4]} 16...
Qb5 {[%clk 0:02:07.4]} 17. Bc1 {[%clk 0:02:50.8]} 17... Re7 {[%clk 0:02:05.7]}
18. b3 {[%clk 0:02:48.5]} 18... Rae8 {[%clk 0:02:06]} 19. Ng3 {[%clk 0:02:46.2]}
19... Bxg3 {[%clk 0:01:58.6]} 20. hxg3 {[%clk 0:02:44.2]} 20... Re2 {[%clk
0:02:00.5]} 21. Rxh7 {[%clk 0:02:40.8]} 21... Na3+ {[%clk 0:01:56.4]} 22. Bxa3
{[%clk 0:02:37.1]} 22... Rxf2 {[%clk 0:01:57.3]} 23. Qxf2 {[%clk 0:02:15.1]}
23... Qxd3+ {[%clk 0:01:51.6]} 24. Kc1 {[%clk 0:02:16.1]} 24... Qxc3+ {[%clk
0:01:52.7]} 25. Kd1 {[%clk 0:02:17.1]} 25... Qd3+ {[%clk 0:01:43.8]} 26. Kc1
{[%clk 0:02:16.8]} 26... Qc3+ {[%clk 0:01:27.4]} 27. Kd1 {[%clk 0:02:17.1]}
27... Qd3+ {[%clk 0:01:26.5]} 28. Kc1 {[%clk 0:02:18]} 28... Qc3+ {[%clk
0:01:27.9]} 1/2-1/2

[Event "*** Titled Tuesday Blitz"]
[Site "Chess.com"]
[Date "2019.08.06"]
[Round "1"]
[White "biostatistician"]
[Black "NM2019"]
[Result "1-0"]
[WhiteElo "2551"]
[BlackElo "2099"]
[TimeControl "180+2"]
[EndTime "13:04:27 PDT"]
[Termination "biostatistician won by resignation"]

1. d4 {[%clk 0:03:01.5]} 1... e6 {[%clk 0:03:00.1]} 2. Nf3 {[%clk 0:03:03.4]}
2... f5 {[%clk 0:03:01.4]} 3. g3 {[%clk 0:03:02.6]} 3... Nf6 {[%clk 0:03:02.6]}
4. Bg2 {[%clk 0:03:04.5]} 4... Ne4 {[%clk 0:03:03.5]} 5. O-O {[%clk 0:03:04.4]}
5... Be7 {[%clk 0:03:05.1]} 6. Nbd2 {[%clk 0:03:04.9]} 6... d5 {[%clk
0:03:05.9]} 7. Ne5 {[%clk 0:03:05.8]} 7... Nd7 {[%clk 0:03:04.3]} 8. Ndf3 {[%clk
0:03:07.1]} 8... O-O {[%clk 0:03:04.5]} 9. c4 {[%clk 0:03:07.8]} 9... c5 {[%clk
0:03:05.1]} 10. cxd5 {[%clk 0:03:08.3]} 10... exd5 {[%clk 0:03:06.2]} 11. Bf4
{[%clk 0:03:09.6]} 11... g5 {[%clk 0:02:53.8]} 12. Nxd7 {[%clk 0:03:05.2]} 12...
Bxd7 {[%clk 0:02:52.8]} 13. Be5 {[%clk 0:03:06.6]} 13... Bc6 {[%clk 0:02:46.7]}
14. e3 {[%clk 0:03:05.2]} 14... c4 {[%clk 0:02:44]} 15. Nd2 {[%clk 0:03:03.6]}
15... Bf6 {[%clk 0:02:42.1]} 16. Bxf6 {[%clk 0:03:03.2]} 16... Qxf6 {[%clk
0:02:42.6]} 17. Nf3 {[%clk 0:02:50]} 17... Rae8 {[%clk 0:02:35.8]} 18. Ne5
{[%clk 0:02:50.7]} 18... Nd6 {[%clk 0:02:25.2]} 19. Qh5 {[%clk 0:02:38.9]} 19...
Kg7 {[%clk 0:02:14.9]} 20. b3 {[%clk 0:02:36.7]} 20... cxb3 {[%clk 0:02:07.9]}
21. axb3 {[%clk 0:02:35.8]} 21... Qh6 {[%clk 0:02:05.3]} 22. Qxh6+ {[%clk
0:02:36.7]} 22... Kxh6 {[%clk 0:02:06.4]} 23. Rxa7 {[%clk 0:02:38.6]} 23... f4
{[%clk 0:02:02.1]} 24. Rc1 {[%clk 0:02:28.5]} 24... Rc8 {[%clk 0:01:54]} 25.
Nxc6 {[%clk 0:02:29.6]} 25... Rxc6 {[%clk 0:01:55.1]} 26. Rxc6 {[%clk
0:02:30.9]} 26... bxc6 {[%clk 0:01:56.8]} 27. Ra6 {[%clk 0:02:32.3]} 27... f3
{[%clk 0:01:46.9]} 28. Rxc6 {[%clk 0:02:30.3]} 28... Rf6 {[%clk 0:01:46.4]} 29.
Bxf3 {[%clk 0:02:31.5]} 1-0

[Event "*** Titled Tuesday Blitz"]
[Site "Chess.com"]
[Date "2019.08.06"]
[Round "1"]
[White "NemtsevIgor"]
[Black "chessdjw"]
[Result "0-1"]
[WhiteElo "2314"]
[BlackElo "2657"]
[TimeControl "180+2"]
[EndTime "13:04:54 PDT"]
[Termination "chessdjw won by checkmate"]

1. d4 {[%clk 0:03:00.1]} 1... Nf6 {[%clk 0:02:59.8]} 2. Bf4 {[%clk 0:02:59.8]}
2... b6 {[%clk 0:02:56.1]} 3. Nf3 {[%clk 0:02:59.6]} 3... Bb7 {[%clk 0:02:57.6]}
4. e3 {[%clk 0:03:00.5]} 4... Nh5 {[%clk 0:02:53.2]} 5. Bg5 {[%clk 0:02:48.7]}
5... h6 {[%clk 0:02:54.2]} 6. Bh4 {[%clk 0:02:48]} 6... g5 {[%clk 0:02:55.5]} 7.
Ne5 {[%clk 0:02:43.6]} 7... Nf6 {[%clk 0:02:44.3]} 8. Bg3 {[%clk 0:02:44.2]}
8... d6 {[%clk 0:02:45.4]} 9. Nf3 {[%clk 0:02:40.5]} 9... Ne4 {[%clk 0:02:45.5]}
10. Nbd2 {[%clk 0:02:37.2]} 10... Nxg3 {[%clk 0:02:45.7]} 11. hxg3 {[%clk
0:02:38.5]} 11... Bg7 {[%clk 0:02:47.6]} 12. Bc4 {[%clk 0:02:37.3]} 12... e6
{[%clk 0:02:48.7]} 13. Qe2 {[%clk 0:02:36.8]} 13... a6 {[%clk 0:02:49.8]} 14. a4
{[%clk 0:02:37.4]} 14... c5 {[%clk 0:02:49.5]} 15. c3 {[%clk 0:02:37]} 15... Nd7
{[%clk 0:02:46.1]} 16. O-O {[%clk 0:02:28.6]} 16... d5 {[%clk 0:02:42.5]} 17.
Bd3 {[%clk 0:02:27.8]} 17... f5 {[%clk 0:02:43.6]} 18. g4 {[%clk 0:02:21.8]}
18... fxg4 {[%clk 0:02:40.2]} 19. Bg6+ {[%clk 0:02:20.7]} 19... Ke7 {[%clk
0:02:37.6]} 20. Ne1 {[%clk 0:02:09.4]} 20... h5 {[%clk 0:02:38.4]} 21. e4 {[%clk
0:02:09.6]} 21... Rh6 {[%clk 0:02:36.2]} 22. Bxh5 {[%clk 0:02:00.8]} 22... Rxh5
{[%clk 0:02:36.6]} 23. Qxg4 {[%clk 0:02:02.7]} 23... Qh8 {[%clk 0:02:33.5]} 24.
f3 {[%clk 0:01:55.5]} 24... cxd4 {[%clk 0:02:34.2]} 25. Nd3 {[%clk 0:01:47.1]}
25... dxc3 {[%clk 0:02:33.1]} 26. bxc3 {[%clk 0:01:47.9]} 26... Bxc3 {[%clk
0:02:32.8]} 27. Kf2 {[%clk 0:01:35]} 27... Bxd2 {[%clk 0:02:20.5]} 28. exd5
{[%clk 0:01:33.2]} 28... Bxd5 {[%clk 0:02:12.1]} 29. Rad1 {[%clk 0:01:31]} 29...
Rh4 {[%clk 0:02:10.9]} 30. Qg3 {[%clk 0:01:24.7]} 30... Qd4+ {[%clk 0:02:10.2]}
31. Ke2 {[%clk 0:01:25.3]} 31... Qe3# {[%clk 0:02:11.6]} 0-1

[Event "*** Titled Tuesday Blitz"]
[Site "Chess.com"]
[Date "2019.08.06"]
[Round "1"]
[White "Yoshkinkot"]
[Black "Roachelley"]
[Result "1-0"]
[WhiteElo "2615"]
[BlackElo "2222"]
[TimeControl "180+2"]
[EndTime "13:05:00 PDT"]
[Termination "Yoshkinkot won by resignation"]

1. e4 {[%clk 0:02:58.1]} 1... c5 {[%clk 0:02:59]} 2. Nf3 {[%clk 0:02:56]} 2...
d6 {[%clk 0:02:58.6]} 3. Bb5+ {[%clk 0:02:54]} 3... Bd7 {[%clk 0:02:57.1]} 4.
Bxd7+ {[%clk 0:02:54.7]} 4... Qxd7 {[%clk 0:02:59]} 5. c4 {[%clk 0:02:55.3]}
5... e5 {[%clk 0:02:59.3]} 6. O-O {[%clk 0:02:54.8]} 6... Nc6 {[%clk 0:02:59.1]}
7. Nc3 {[%clk 0:02:51.9]} 7... g6 {[%clk 0:02:59.9]} 8. d3 {[%clk 0:02:39]} 8...
Bg7 {[%clk 0:02:58.7]} 9. Ne1 {[%clk 0:02:37.5]} 9... Nge7 {[%clk 0:02:57.1]}
10. Bg5 {[%clk 0:02:37.9]} 10... O-O {[%clk 0:02:56.9]} 11. Bxe7 {[%clk
0:02:35.6]} 11... Nxe7 {[%clk 0:02:55.8]} 12. Nc2 {[%clk 0:02:35.6]} 12... f5
{[%clk 0:02:42.8]} 13. f3 {[%clk 0:02:34.8]} 13... Nc6 {[%clk 0:02:41]} 14. Nd5
{[%clk 0:02:34.8]} 14... Nd4 {[%clk 0:02:32.6]} 15. Nxd4 {[%clk 0:02:34.8]}
15... cxd4 {[%clk 0:02:30.7]} 16. b4 {[%clk 0:02:30.4]} 16... b6 {[%clk
0:02:26.6]} 17. Qb3 {[%clk 0:02:27.9]} 17... Kh8 {[%clk 0:02:23.8]} 18. b5
{[%clk 0:02:16.6]} 18... Qd8 {[%clk 0:02:12.3]} 19. a4 {[%clk 0:02:16.5]} 19...
f4 {[%clk 0:01:34.6]} 20. a5 {[%clk 0:02:13.7]} 20... bxa5 {[%clk 0:01:34]} 21.
Qa3 {[%clk 0:02:13.6]} 21... Rf7 {[%clk 0:01:20.9]} 22. Qxa5 {[%clk 0:02:13.1]}
22... Qxa5 {[%clk 0:01:10.4]} 23. Rxa5 {[%clk 0:02:13.4]} 23... Rd8 {[%clk
0:01:08.4]} 24. Rfa1 {[%clk 0:02:10.9]} 24... Rdd7 {[%clk 0:01:07.6]} 25. Nb4
{[%clk 0:02:11]} 1-0

[Event "*** Titled Tuesday Blitz"]
[Site "Chess.com"]
[Date "2019.08.06"]
[Round "1"]
[White "CentrumSakkiskola"]
[Black "gemarin"]
[Result "0-1"]
[WhiteElo "2502"]
[BlackElo "2048"]
[TimeControl "180+2"]
[EndTime "13:05:22 PDT"]
[Termination "gemarin won by resignation"]

1. e4 {[%clk 0:03:00.8]} 1... c5 {[%clk 0:03:00]} 2. Nf3 {[%clk 0:03:01.9]} 2...
Nc6 {[%clk 0:03:00.2]} 3. Bb5 {[%clk 0:03:01.8]} 3... g6 {[%clk 0:03:00.4]} 4.
c3 {[%clk 0:03:01.3]} 4... Bg7 {[%clk 0:02:56.3]} 5. O-O {[%clk 0:03:00.4]} 5...
e5 {[%clk 0:02:56.3]} 6. Na3 {[%clk 0:02:56.4]} 6... Nge7 {[%clk 0:02:56]} 7.
Nc2 {[%clk 0:02:56.1]} 7... O-O {[%clk 0:02:55.9]} 8. d4 {[%clk 0:02:56.9]} 8...
cxd4 {[%clk 0:02:56.1]} 9. cxd4 {[%clk 0:02:58]} 9... Nxd4 {[%clk 0:02:53.9]}
10. Ncxd4 {[%clk 0:02:58.7]} 10... exd4 {[%clk 0:02:55]} 11. Bg5 {[%clk
0:02:58.6]} 11... h6 {[%clk 0:02:52.1]} 12. Bh4 {[%clk 0:02:58.9]} 12... g5
{[%clk 0:02:52.5]} 13. Bg3 {[%clk 0:03:00.1]} 13... d6 {[%clk 0:02:42.1]} 14.
Nxd4 {[%clk 0:02:59.6]} 14... Qb6 {[%clk 0:02:40.5]} 15. Nb3 {[%clk 0:02:23.8]}
15... Qxb5 {[%clk 0:02:39.8]} 16. Qxd6 {[%clk 0:02:24.7]} 16... Ng6 {[%clk
0:02:39.2]} 17. Rac1 {[%clk 0:02:24.2]} 17... Be6 {[%clk 0:02:36.8]} 18. Nd4
{[%clk 0:02:22.7]} 18... Qb6 {[%clk 0:02:21.9]} 19. Nxe6 {[%clk 0:02:19.2]}
19... fxe6 {[%clk 0:02:21.4]} 20. Qd7 {[%clk 0:02:16]} 20... Rf7 {[%clk
0:02:17.6]} 21. Rc8+ {[%clk 0:02:08.5]} 21... Rxc8 {[%clk 0:02:15.8]} 22. Qxc8+
{[%clk 0:02:10.4]} 22... Kh7 {[%clk 0:02:14.6]} 23. b3 {[%clk 0:02:10.6]} 23...
Nf4 {[%clk 0:02:12.6]} 24. Bxf4 {[%clk 0:02:08.7]} 24... gxf4 {[%clk 0:02:12.9]}
25. h3 {[%clk 0:02:03.2]} 25... Bd4 {[%clk 0:02:12]} 26. Qe8 {[%clk 0:01:56]}
26... Kg7 {[%clk 0:02:09.1]} 27. h4 {[%clk 0:01:41.9]} 27... Qc6 {[%clk
0:02:08.6]} 28. Qd8 {[%clk 0:01:36.9]} 28... Qxe4 {[%clk 0:02:08.3]} 29. Rd1
{[%clk 0:01:37.7]} 29... e5 {[%clk 0:02:05]} 30. h5 {[%clk 0:01:33.5]} 30... f3
{[%clk 0:02:03.8]} 31. g3 {[%clk 0:01:27.9]} 31... Qg4 {[%clk 0:02:04.3]} 0-1

[Event "*** Titled Tuesday Blitz"]
[Site "Chess.com"]
[Date "2019.08.06"]
[Round "1"]
[White "cancrushyou"]
[Black "Annawel"]
[Result "0-1"]
[WhiteElo "2505"]
[BlackElo "2996"]
[TimeControl "180+2"]
[EndTime "13:05:23 PDT"]
[Termination "Annawel won by resignation"]

1. d4 {[%clk 0:02:59.8]} 1... d6 {[%clk 0:02:58.5]} 2. g3 {[%clk 0:02:58.8]}
2... g6 {[%clk 0:02:59]} 3. Bg2 {[%clk 0:02:59.5]} 3... Bg7 {[%clk 0:03:00]} 4.
Nf3 {[%clk 0:03:00.9]} 4... f5 {[%clk 0:03:01.5]} 5. O-O {[%clk 0:03:00.5]} 5...
Nf6 {[%clk 0:03:03.1]} 6. c4 {[%clk 0:03:01.7]} 6... O-O {[%clk 0:03:04.1]} 7.
Nc3 {[%clk 0:03:01.3]} 7... c6 {[%clk 0:03:05]} 8. b3 {[%clk 0:02:56.2]} 8...
Qc7 {[%clk 0:03:03]} 9. Bb2 {[%clk 0:02:56.9]} 9... e5 {[%clk 0:02:53.5]} 10. e3
{[%clk 0:02:53.9]} 10... e4 {[%clk 0:02:53.6]} 11. Nd2 {[%clk 0:02:54.9]} 11...
Be6 {[%clk 0:02:45.5]} 12. Rc1 {[%clk 0:02:54.4]} 12... Nbd7 {[%clk 0:02:45.6]}
13. d5 {[%clk 0:02:36.3]} 13... Bf7 {[%clk 0:02:45.4]} 14. dxc6 {[%clk
0:02:32.9]} 14... bxc6 {[%clk 0:02:47.3]} 15. Na4 {[%clk 0:02:13]} 15... Rae8
{[%clk 0:02:43.8]} 16. Qc2 {[%clk 0:02:07.2]} 16... Ne5 {[%clk 0:02:39.4]} 17.
Ba1 {[%clk 0:01:35.7]} 17... h5 {[%clk 0:02:37.4]} 18. h4 {[%clk 0:01:32.5]}
18... Nfg4 {[%clk 0:02:37.9]} 19. c5 {[%clk 0:01:14.1]} 19... d5 {[%clk
0:02:37.7]} 20. b4 {[%clk 0:01:06.5]} 20... Qe7 {[%clk 0:02:37.2]} 21. Nb3
{[%clk 0:01:02.2]} 21... g5 {[%clk 0:02:37.2]} 22. Nd4 {[%clk 0:00:57.2]} 22...
Bg6 {[%clk 0:02:38.3]} 23. hxg5 {[%clk 0:00:54.5]} 23... Qxg5 {[%clk 0:02:40.2]}
24. b5 {[%clk 0:00:35.9]} 24... h4 {[%clk 0:02:40.6]} 25. gxh4 {[%clk
0:00:29.2]} 25... Qxh4 {[%clk 0:02:41.6]} 26. Rfe1 {[%clk 0:00:28.6]} 26... f4
{[%clk 0:02:37.7]} 27. exf4 {[%clk 0:00:21]} 27... e3 {[%clk 0:02:38.6]} 28.
fxe3 {[%clk 0:00:18.2]} 28... Bxc2 {[%clk 0:02:38.8]} 0-1

[Event "*** Titled Tuesday Blitz"]
[Site "Chess.com"]
[Date "2019.08.06"]
[Round "1"]
[White "olksuna"]
[Black "CMS13"]
[Result "1-0"]
[WhiteElo "2533"]
[BlackElo "2014"]
[TimeControl "180+2"]
[EndTime "13:05:23 PDT"]
[Termination "olksuna won by checkmate"]

1. c4 {[%clk 0:02:59.3]} 1... e5 {[%clk 0:03:00.4]} 2. Nc3 {[%clk 0:03:00.1]}
2... Nc6 {[%clk 0:03:01.4]} 3. Nf3 {[%clk 0:03:00]} 3... Bc5 {[%clk 0:03:02.5]}
4. g3 {[%clk 0:02:59.7]} 4... d6 {[%clk 0:03:02.2]} 5. Bg2 {[%clk 0:03:00.7]}
5... a6 {[%clk 0:03:03.1]} 6. d3 {[%clk 0:02:56.3]} 6... Nge7 {[%clk 0:03:02.5]}
7. O-O {[%clk 0:02:53.4]} 7... O-O {[%clk 0:03:03.4]} 8. e3 {[%clk 0:02:51.3]}
8... Ba7 {[%clk 0:03:03.9]} 9. h3 {[%clk 0:02:50.1]} 9... f6 {[%clk 0:03:03.9]}
10. Kh2 {[%clk 0:02:48.6]} 10... Be6 {[%clk 0:02:47.4]} 11. e4 {[%clk
0:02:34.3]} 11... Nd4 {[%clk 0:02:10.8]} 12. Nxd4 {[%clk 0:02:30.9]} 12... Bxd4
{[%clk 0:02:11.5]} 13. f4 {[%clk 0:02:22.5]} 13... Nc6 {[%clk 0:02:10.1]} 14. f5
{[%clk 0:02:19.1]} 14... Bf7 {[%clk 0:02:08.4]} 15. g4 {[%clk 0:02:20.4]} 15...
Kh8 {[%clk 0:01:57.5]} 16. h4 {[%clk 0:02:17.4]} 16... Ne7 {[%clk 0:01:45.1]}
17. g5 {[%clk 0:02:14.5]} 17... c6 {[%clk 0:01:32]} 18. h5 {[%clk 0:02:13.3]}
18... d5 {[%clk 0:01:17.8]} 19. g6 {[%clk 0:02:07.6]} 19... Bg8 {[%clk
0:01:16.5]} 20. h6 {[%clk 0:02:07.8]} 20... hxg6 {[%clk 0:00:52.8]} 21. fxg6
{[%clk 0:02:06.9]} 21... Be6 {[%clk 0:00:25.4]} 22. Qh5 {[%clk 0:02:03.4]} 22...
Ng8 {[%clk 0:00:19.2]} 23. hxg7+ {[%clk 0:02:01.3]} 23... Kxg7 {[%clk
0:00:20.3]} 24. Qh7# {[%clk 0:02:02.4]} 1-0